fUSD/lending_fUSD_20250212
["ID","MTS","AMOUNT","RATE_DAILY","PERIOD"]
[352859188,1739377843159,-919.21,0.0001094,2]
[352859190,1739377843170,-566.0,0.0001095,2]
[352859192,1739377843180,-638.0,0.0001095,2]
[352859194,1739377843190,-1786.0,0.0001095,2]
[352859197,1739377843201,-783.0,0.0001095,2]
[352859199,1739377843211,-2955.0,0.0001095,2]
[352859201,1739377843221,-1265.0,0.0001095,2]
[352859203,1739377843231,-908.0,0.0001095,2]
[352859205,1739377843240,-539.0,0.0001095,2]
[352859208,1739377843251,-4026.0,0.0001095,2]
[352859211,1739377843260,-151.0,0.0001095,2]
[352859214,1739377843270,-1273.0,0.0001095,2]
[352859217,1739377843282,-3914.0,0.0001095,2]
[352859220,1739377843292,-150.0,0.0001095,2]
[352859223,1739377843301,-1008.0,0.0001095,2]
[352859226,1739377843313,-289.169,0.0001095,2]
[352859228,1739377843323,-169.56,0.00010985,2]
[352859230,1739377843334,-3764.23675281,0.00011099,2]
[352859232,1739377843344,-3764.23675275,0.00011099,2]
[352859235,1739377843355,-3764.23675275,0.00011099,2]
[352859237,1739377843364,-205.0446212,0.00011269,2]
[352859239,1739377843375,-1076.75967266,0.0001127,2]
[352859241,1739377843386,-1098.1410731,0.0001127,2]
[352859243,1739377843396,-634.813,0.000113,2]
[352859245,1739377843406,-224.01,0.000114,2]
[352859247,1739377843416,-3551.4886692,0.000114,2]
[352859249,1739377843427,-13329.98648592,0.000114,2]
[352859463,1739377845891,-564.2,0.000114,2]
[352859464,1739377846002,-18108.51904568,0.000114,2]
[352859465,1739377846013,-596.81035514,0.000114,2]
[352859466,1739377846022,-778.0,0.000114,2]
[352859467,1739377846034,-231.0,0.000114,2]
[352859468,1739377846044,-500.0,0.00011408,2]
[352859469,1739377846055,-2000.0,0.00011408,2]
[352859470,1739377846066,-200.0,0.00011408,2]
[352859471,1739377846076,-500.0,0.00011473,2]
[352859472,1739377846086,-151.79,0.0001149,2]
[352859473,1739377846096,-151.79,0.0001149,2]
[352859474,1739377846107,-151.79,0.0001149,2]
[352859475,1739377846116,-250000.0,0.0001149,2]
[352859476,1739377846126,-352.0584419,0.00011491,2]
[352859477,1739377846135,-487.8581128,0.00011492,2]
[352859478,1739377846145,-782.3250852,0.00011492,2]
[352859479,1739377846154,-307.63246731,0.00011499,2]
[352859480,1739377846164,-2692.80191224,0.00011499,3]
[352859481,1739377846175,-72081.84390069,0.000115,3]
[352859482,1739377846189,-524.38979124,0.000115,3]
[352859483,1739377846201,-1910.14,0.000115,3]
[352859484,1739377846212,-271.1,0.000115,3]
[352859485,1739377846410,-3000.0,0.000115,3]
[352859486,1739377846456,-696.054795,0.000115,3]
[352860417,1739377881860,827.5753,8.699e-05,2]
[352860418,1739377891326,150.0,0.00019857,120]
[352860716,1739379032047,-862.05,9.009e-05,2]
[352860717,1739379032058,-153.49,0.00010137,2]
[352860718,1739379032068,-166.66666666,0.00010889,2]
[352860719,1739379032078,-165.17,0.00010895,2]
[352860720,1739379032088,-1000.0,0.00010989,2]
[352860721,1739379032099,-150.0,0.00011068,2]
[352860722,1739379032109,-150.0,0.00011099,2]
[352860723,1739379032118,-300.0,0.00011099,2]
[352860724,1739379032129,-828.283,0.000111,2]
[352860725,1739379032139,-182.573,0.000111,2]
[352860726,1739379032149,-735.275,0.000111,2]
[352860727,1739379032161,-1264.0,0.000111,2]
[352860728,1739379032172,-218.078,0.000111,2]
[352860729,1739379032183,-2955.0,0.000111,2]
[352860730,1739379032193,-783.0,0.000111,2]
[352860731,1739379032203,-538.995,0.000111,2]
[352860732,1739379032213,-4026.0,0.000111,2]
[352860733,1739379032223,-3914.0,0.000111,2]
[352860734,1739379032234,-150.0,0.000111,2]
[352860735,1739379032244,-610.67,0.000111,2]
[352860736,1739379032254,-377.4,0.00011111,2]
[352860737,1739379032264,-205.0446212,0.00011269,2]
[352860738,1739379032273,-862.05,0.00011273,2]
[352860739,1739379032284,-2634.96572697,0.000114,2]
[352860740,1739379032295,-502.55641872,0.000114,2]
[352860741,1739379032305,-500.0,0.00011408,2]
[352860742,1739379032315,-2000.0,0.00011408,2]
[352860743,1739379032325,-500.0,0.00011408,2]
[352860744,1739379032339,-200.0,0.00011408,2]
[352860745,1739379032351,-425.4523636,0.00011491,2]
[352860746,1739379032361,-482.5240448,0.00011491,2]
[352860747,1739379032372,-579.0288542,0.00011491,2]
[352860748,1739379032381,-1654.4470983,0.00011491,2]
[352860749,1739379032391,-507.851,0.00011499,2]
[352860750,1739379032401,-4000.0,0.00011499,2]
[352860751,1739379032411,-186210.95344383,0.000115,2]
[352860752,1739379032421,-1556.31,0.000115,2]
[352860753,1739379032431,-54206.14,0.000115,2]
[352860754,1739379032441,-150.0,0.000115,2]
[352860755,1739379032451,-177.38178188,0.000115,2]
[352860756,1739379032461,-150.0,0.000115,2]
[352860757,1739379032471,-150.0,0.000115,2]
[352860758,1739379032481,-150.0,0.000115,2]
[352860760,1739379032491,-5180.75495211,0.000115,2]
[352860762,1739379032500,-2467.46743031,0.000115,2]
[352860764,1739379032510,-25720.76780197,0.000115,2]
[352860766,1739379032520,-3651.89199711,0.000115,2]
[352860768,1739379032539,-171.76655891,0.000115,2]
[352860770,1739379032561,-201.16631539,0.000115,2]
[352860772,1739379032585,-254.56,0.00011507,2]
[352860774,1739379032607,-9266.6,0.000116,2]
[352860776,1739379032631,-367.0,0.000116,2]
[352860778,1739379032654,-172.548647,0.0001164,3]
[352860780,1739379032677,-172.548647,0.0001184,3]
[352860782,1739379032700,-2634.96572692,0.000119,2]
[352860784,1739379032723,-9598.71095583,0.000119,2]
[352860786,1739379032745,-153.0,0.00011936,2]
[352860788,1739379032767,-153.0,0.00011936,2]
[352860790,1739379032790,-153.0,0.00011936,2]
[352860792,1739379032803,-153.0,0.00011936,2]
[352860795,1739379032813,-406.11736468,0.00011999,2]
[352860797,1739379032823,-1500.0,0.00012,2]
[352860799,1739379032833,-1500.0,0.00012,2]
[352860801,1739379032843,-1500.0,0.00012,2]
[352860803,1739379032855,-1500.0,0.00012,2]
[352860805,1739379032864,-1500.0,0.00012,2]
[352860807,1739379032875,-1500.0,0.00012,2]
[352860809,1739379032885,-1500.0,0.00012,2]
[352860811,1739379032895,-1969.63,0.00012,2]
[352860813,1739379032906,-1500.0,0.00012,2]
[352860815,1739379032916,-1500.0,0.00012,2]
[352860817,1739379032927,-1003.0,0.00012,2]
[352860819,1739379032937,-500.0,0.00012,2]
[352860821,1739379032946,-500.0,0.00012,2]
[352860823,1739379032956,-500.0,0.00012,2]
[352860825,1739379032967,-500.0,0.00012,2]
[352860827,1739379032977,-500.0,0.00012,2]
[352860829,1739379032987,-500.0,0.00012,2]
[352860831,1739379032996,-500.0,0.00012,2]
[352860833,1739379033009,-500.0,0.00012,2]
[352860836,1739379033022,-500.0,0.00012,2]
[352860838,1739379033033,-500.0,0.00012,2]
[352860840,1739379033044,-500.0,0.00012,2]
[352860842,1739379033056,-500.0,0.00012,2]
[352860844,1739379033067,-500.0,0.00012,2]
[352860846,1739379033077,-500.0,0.00012,2]
[352860848,1739379033088,-500.0,0.00012,2]
[352860850,1739379033102,-500.0,0.00012,2]
[352860852,1739379033115,-500.0,0.00012,2]
[352860867,1739379033264,-500.0,0.00012,2]
[352860869,1739379033276,-500.0,0.00012,2]
[352860871,1739379033288,-500.0,0.00012,2]
[352860874,1739379033298,-500.0,0.00012,2]
[352860876,1739379033309,-500.0,0.00012,2]
[352860878,1739379033319,-500.0,0.00012,2]
[352860880,1739379033330,-500.0,0.00012,2]
[352860882,1739379033340,-500.0,0.00012,2]
[352860884,1739379033353,-500.0,0.00012,2]
[352860886,1739379033363,-500.0,0.00012,2]
[352860888,1739379033375,-500.0,0.00012,2]
[352860890,1739379033386,-500.0,0.00012,2]
[352860892,1739379033397,-500.0,0.00012,2]
[352860894,1739379033409,-500.0,0.00012,2]
[352860896,1739379033419,-500.0,0.00012,2]
[352860898,1739379033429,-500.0,0.00012,2]
[352860900,1739379033440,-500.0,0.00012,2]
[352860902,1739379033450,-500.0,0.00012,2]
[352860904,1739379033460,-500.0,0.00012,2]
[352860906,1739379033473,-500.0,0.00012,2]
[352860908,1739379033484,-500.0,0.00012,2]
[352860910,1739379033494,-500.0,0.00012,2]
[352860912,1739379033505,-500.0,0.00012,2]
[352860914,1739379033516,-500.0,0.00012,2]
[352860916,1739379033539,-500.0,0.00012,2]
[352860918,1739379033561,-500.0,0.00012,2]
[352860920,1739379033586,-500.0,0.00012,2]
[352860923,1739379033612,-500.0,0.00012,2]
[352860925,1739379033637,-500.0,0.00012,2]
[352860927,1739379033660,-500.0,0.00012,2]
[352860929,1739379033683,-500.0,0.00012,2]
[352860931,1739379033706,-500.0,0.00012,2]
[352860933,1739379033729,-500.0,0.00012,2]
[352860935,1739379033751,-500.0,0.00012,2]
[352860937,1739379033775,-500.0,0.00012,2]
[352860939,1739379033799,-500.0,0.00012,2]
[352860941,1739379033820,-500.0,0.00012,2]
[352860943,1739379033831,-500.0,0.00012,2]
[352860945,1739379033843,-500.0,0.00012,2]
[352860946,1739379033856,-500.0,0.00012,2]
[352860949,1739379033868,-500.0,0.00012,2]
[352860951,1739379033878,-500.0,0.00012,2]
[352860953,1739379033888,-500.0,0.00012,2]
[352860955,1739379033899,-500.0,0.00012,2]
[352860957,1739379033910,-500.0,0.00012,2]
[352860959,1739379033920,-500.0,0.00012,2]
[352860961,1739379033931,-500.0,0.00012,2]
[352860963,1739379033940,-500.0,0.00012,2]
[352860965,1739379033951,-500.0,0.00012,2]
[352860967,1739379033962,-500.0,0.00012,2]
[352860969,1739379033971,-745.0,0.00012,2]
[352860971,1739379033981,-500.0,0.00012,2]
[352860973,1739379033992,-500.0,0.00012,2]
[352860974,1739379034004,-500.0,0.00012,2]
[352860976,1739379034015,-500.0,0.00012,2]
[352860978,1739379034027,-500.0,0.00012,2]
[352860981,1739379034038,-506.0,0.00012,2]
[352860982,1739379034050,-500.0,0.00012,2]
[352860985,1739379034061,-500.0,0.00012,2]
[352860986,1739379034071,-500.0,0.00012,2]
[352860989,1739379034083,-500.0,0.00012,2]
[352860991,1739379034095,-500.0,0.00012,2]
[352860993,1739379034105,-500.0,0.00012,2]
[352860995,1739379034115,-500.0,0.00012,2]
[352860997,1739379034126,-500.0,0.00012,2]
[352860999,1739379034137,-500.0,0.00012,2]
[352861001,1739379034148,-500.0,0.00012,2]
[352861003,1739379034159,-500.0,0.00012,2]
[352861005,1739379034170,-500.0,0.00012,2]
[352861007,1739379034180,-500.0,0.00012,2]
[352861009,1739379034190,-657.0,0.00012,2]
[352861011,1739379034201,-321.57723624,0.00012053,2]
[352861013,1739379034211,-45400.52,0.00012055,2]
[352861015,1739379034222,-255.0,0.00012153,2]
[352861017,1739379034231,-420.0,0.00012195,2]
[352861019,1739379034242,-165.17,0.00012257,2]
[352861021,1739379034254,-9598.71095581,0.00012344,2]
[352861023,1739379034264,-1000.0,0.00012362,2]
[352861025,1739379034274,-2634.96572692,0.000124,2]
[352861027,1739379034284,-233.16,0.00012412,2]
[352861029,1739379034294,-377.4,0.000125,2]
[352861031,1739379034305,-48674.2102012,0.00012518,7]
[352861033,1739379034315,-456.62221617,0.0001252,2]
[352861035,1739379034326,-772.09685347,0.00012523,2]
[352861037,1739379034338,-772.09685347,0.00012526,2]
[352861039,1739379034352,-456.62221617,0.00012529,2]
[352861041,1739379034363,-2810.04253536,0.0001253,2]
[352861043,1739379034374,-2810.04253536,0.00012541,2]
[352861045,1739379034384,-2810.04253536,0.00012548,2]
[352861048,1739379034396,-772.09685347,0.00012548,2]
[352861050,1739379034406,-456.62221617,0.00012551,2]
[352861052,1739379034417,-200.0,0.00012551,2]
[352861054,1739379034428,-772.09685347,0.00012552,2]
[352861056,1739379034439,-200.0,0.00012554,2]
[352861058,1739379034449,-456.62221617,0.00012568,2]
[352861060,1739379034461,-2810.04253536,0.00012568,2]
[352861062,1739379034471,-200.0,0.00012584,2]
[352861064,1739379034483,-200.0,0.00012588,2]
[352861066,1739379034493,-200.0,0.00012589,2]
[352861068,1739379034503,-17267.92,0.00012603,2]
[352861070,1739379034512,-9598.71095581,0.00012789,2]
[352861072,1739379034522,-172.548647,0.00012807,3]
[352861074,1739379034533,-224.01,0.00012825,2]
[352861076,1739379034543,-2634.96572692,0.000129,2]
[352861078,1739379034553,-2900.0,0.000129,3]
[352861080,1739379034564,-1000.0,0.00013,2]
[352861082,1739379034574,-550.0,0.00013,2]
[352861084,1739379034584,-338.66,0.000131,2]
[352861086,1739379034594,-200.29,0.00013159,2]
[352861088,1739379034606,-9598.71095581,0.00013233,2]
[352861090,1739379034616,-5554.0,0.000133,5]
[352861092,1739379034626,-433.0,0.00013308,2]
[352861094,1739379034636,-150.0,0.00013315,2]
[352861096,1739379034646,-150.0,0.00013315,2]
[352861098,1739379034657,-172.548647,0.0001332,3]
[352861100,1739379034669,-2634.96572692,0.000134,2]
[352861102,1739379034679,-427.0,0.000134,2]
[352861104,1739379034690,-862.05,0.00013537,2]
[352861106,1739379034700,-165.17,0.00013619,2]
[352861108,1739379034710,-2000.0,0.00013643,4]
[352861110,1739379034721,-9598.71095581,0.00013678,2]
[352861112,1739379034731,-761.83,0.00013699,2]
[352861114,1739379034741,-761.83,0.00013699,2]
[352861116,1739379034751,-761.83,0.00013699,2]
[352861118,1739379034761,-761.83,0.00013699,2]
[352861120,1739379034772,-761.83,0.00013699,2]
[352861122,1739379034782,-761.83,0.00013699,2]
[352861124,1739379034792,-761.83,0.00013699,2]
[352861126,1739379034802,-761.83,0.00013699,2]
[352861128,1739379034811,-761.83,0.00013699,2]
[352861130,1739379034821,-761.83,0.00013699,2]
[352861132,1739379034831,-761.83,0.00013699,2]
[352861134,1739379034841,-761.83,0.00013699,2]
[352861136,1739379034852,-761.83,0.00013699,2]
[352861138,1739379034862,-761.83,0.00013699,2]
[352861140,1739379034872,-761.83,0.00013699,2]
[352861142,1739379034882,-761.83,0.00013699,2]
[352861144,1739379034892,-761.83,0.00013699,2]
[352861146,1739379034901,-761.83,0.00013699,2]
[352861148,1739379034911,-761.8935206,0.00013699,2]
[352861150,1739379034920,-167.71,0.00013699,2]
[352861152,1739379034930,-10038.87,0.00013699,2]
[352861154,1739379034939,-500.0,0.00013699,2]
[352861156,1739379034949,-49313.67,0.00013699,2]
[352861158,1739379034960,-9616.7,0.00013699,2]
[352861160,1739379034970,-923.68,0.000137,2]
[352861162,1739379034979,-923.68,0.000137,2]
[352861165,1739379034989,-1000.0,0.00013736,2]
[352861167,1739379034999,-377.4,0.00013889,2]
[352861169,1739379035010,-2634.96572692,0.000139,2]
[352861171,1739379035022,-1000.0,0.00014,2]
[352861173,1739379035031,-500.0,0.00014,2]
[352861175,1739379035040,-500.0,0.00014,2]
[352861177,1739379035050,-500.0,0.00014,2]
[352861179,1739379035060,-500.0,0.00014,2]
[352861181,1739379035070,-500.0,0.00014,2]
[352861183,1739379035079,-500.0,0.00014,2]
[352861185,1739379035090,-500.0,0.00014,2]
[352861200,1739379035224,-500.0,0.00014,2]
[352861202,1739379035235,-500.0,0.00014,2]
[352861204,1739379035245,-500.0,0.00014,2]
[352861205,1739379035255,-500.0,0.00014,2]
[352861206,1739379035264,-500.0,0.00014,2]
[352861207,1739379035273,-500.0,0.00014,2]
[352861208,1739379035283,-500.0,0.00014,2]
[352861209,1739379035293,-500.0,0.00014,2]
[352861210,1739379035303,-500.0,0.00014,2]
[352861211,1739379035313,-500.0,0.00014,2]
[352861212,1739379035322,-500.0,0.00014,2]
[352861213,1739379035332,-500.0,0.00014,2]
[352861214,1739379035342,-500.0,0.00014,2]
[352861215,1739379035353,-500.0,0.00014,2]
[352861217,1739379035363,-500.0,0.00014,2]
[352861219,1739379035372,-500.0,0.00014,2]
[352861221,1739379035382,-500.0,0.00014,2]
[352861223,1739379035393,-500.0,0.00014,2]
[352861225,1739379035403,-500.0,0.00014,2]
[352861227,1739379035412,-500.0,0.00014,2]
[352861229,1739379035422,-500.0,0.00014,2]
[352861231,1739379035431,-500.0,0.00014,2]
[352861233,1739379035441,-500.0,0.00014,2]
[352861235,1739379035451,-218.69,0.00014,2]
[352861237,1739379035461,-500.0,0.00014,2]
[352861239,1739379035471,-500.0,0.00014,2]
[352861241,1739379035480,-500.0,0.00014,2]
[352861243,1739379035490,-150.0,0.00014055,2]
[352861245,1739379035500,-1506.146,0.000141,2]
[352861248,1739379035510,-783.0,0.000141,2]
[352861250,1739379035520,-4026.0,0.000141,2]
[352861252,1739379035529,-3914.0,0.000141,2]
[352861254,1739379035539,-150.0,0.000141,2]
[352861256,1739379035549,-224.01,0.0001425,2]
[352861258,1739379035558,-2634.96572692,0.000144,2]
[352861260,1739379035568,-3600.0,0.000145,5]
[352861262,1739379035577,-150.99,0.00014504,2]
[352861264,1739379035586,-299.99,0.00014504,2]
[352861266,1739379035596,-1000.0,0.0001452,3]
[352861268,1739379035607,-520.0,0.00014573,2]
[352861270,1739379035617,-7300.0,0.000146,5]
[352861272,1739379035626,-898.0,0.00014688,2]
[352861274,1739379035635,-150.0,0.00014691,2]
[352861276,1739379035645,-150.0,0.00014694,2]
[352861277,1739379035654,-150.0,0.00014694,2]
[352861278,1739379035666,-150.0,0.00014697,2]
[352861279,1739379035675,-1000.0,0.00014697,2]
[352861280,1739379035685,-150.0,0.00014698,2]
[352861281,1739379035695,-457.00528796,0.00014698,2]
[352861283,1739379035706,-441.99530635,0.00014698,2]
[352861285,1739379035715,-2367.6591128,0.00014698,2]
[352861287,1739379035725,-166.79785434,0.00014699,2]
[352861289,1739379035734,-632.50945358,0.000147,2]
[352861291,1739379035743,-150.0,0.000147,2]
[352861293,1739379035753,-10900.0,0.000147,5]
[352861294,1739379035763,-150.0,0.00014701,2]
[352861295,1739379035772,-1000.0,0.00014703,2]
[352861297,1739379035782,-150.0,0.00014704,2]
[352861299,1739379035791,-150.0,0.00014704,2]
[352861302,1739379035801,-1000.0,0.00014706,2]
[352861303,1739379035811,-150.0,0.00014708,2]
[352861304,1739379035820,-1200.0,0.00014709,2]
[352861305,1739379035829,-150.0,0.00014713,2]
[352861306,1739379035839,-150.0,0.00014714,2]
[352861307,1739379035848,-150.0,0.00014715,2]
[352861308,1739379035859,-150.0,0.00014717,2]
[352861309,1739379035869,-1000.0,0.00014719,2]
[352861310,1739379035879,-1000.0,0.0001472,2]
[352861311,1739379035888,-150.0,0.0001472,2]
[352861312,1739379035897,-150.0,0.00014721,2]
[352861313,1739379035907,-150.0,0.00014722,2]
[352861314,1739379035916,-150.0,0.00014722,2]
[352861315,1739379035925,-150.0,0.00014724,2]
[352861316,1739379035935,-1000.0,0.00014725,2]
[352861317,1739379035944,-1000.0,0.00014728,2]
[352861318,1739379035954,-150.0,0.00014731,2]
[352861319,1739379035964,-150.0,0.00014732,2]
[352861320,1739379035974,-150.0,0.00014736,2]
[352861321,1739379035984,-150.0,0.00014743,2]
[352861322,1739379035993,-150.0,0.00014744,2]
[352861323,1739379036003,-150.0,0.00014747,2]
[352861324,1739379036014,-150.0,0.00014749,2]
[352861325,1739379036023,-150.0,0.0001475,2]
[352861326,1739379036033,-150.0,0.00014752,2]
[352861327,1739379036042,-150.0,0.00014753,2]
[352861328,1739379036051,-150.0,0.00014754,2]
[352861329,1739379036062,-674.5371604,0.00014755,2]
[352861330,1739379036071,-150.0,0.00014757,2]
[352861331,1739379036080,-150.0,0.00014766,2]
[352861332,1739379036091,-150.0,0.00014767,2]
[352861333,1739379036101,-150.0,0.00014769,2]
[352861334,1739379036110,-150.0,0.00014769,2]
[352861335,1739379036120,-150.0,0.0001477,2]
[352861336,1739379036130,-150.0,0.00014773,2]
[352861337,1739379036140,-1000.0,0.00014776,2]
[352861338,1739379036149,-150.0,0.0001478,2]
[352861339,1739379036159,-150.0,0.0001478,2]
[352861340,1739379036168,-150.0,0.0001478,2]
[352861341,1739379036178,-150.0,0.00014783,2]
[352861342,1739379036187,-150.0,0.00014784,2]
[352861343,1739379036197,-254.73015411,0.00014786,2]
[352861344,1739379036207,-151.8,0.00014788,2]
[352861345,1739379036216,-150.0,0.0001479,2]
[352861346,1739379036226,-150.0,0.00014793,2]
[352861347,1739379036236,-150.0,0.00014794,2]
[352861348,1739379036245,-1000.0,0.00014794,3]
[352861349,1739379036254,-150.0,0.00014795,2]
[352861350,1739379036263,-150.0,0.00014795,2]
[352861351,1739379036273,-974.67583551,0.00014796,2]
[352861352,1739379036282,-666.0,0.00014797,2]
[352861353,1739379036292,-666.0,0.00014797,2]
[352861354,1739379036301,-1346.40095612,0.00014798,3]
[352861355,1739379036311,-300.0,0.00014798,2]
[352861356,1739379036320,-300.0,0.00014798,2]
[352861357,1739379036329,-300.0,0.00014798,2]
[352861358,1739379036339,-666.0,0.00014798,2]
[352861359,1739379036347,-179419.34482303,0.00014798,3]
[352861360,1739379036827,-2190.77369248,0.00014798,3]
[352861361,1739379036839,-1250.96724705,0.00014798,3]
[352861362,1739379036865,-2820.812805,0.00014798,3]
[352861363,1739379036937,-300.0,0.00014798,2]
[352861364,1739379036964,-300.0,0.00014798,2]
[352861365,1739379036985,-1000.0,0.00014799,2]
[352861366,1739379037012,-524.0638401,0.00014799,2]
[352861367,1739379037030,-150.0,0.00014799,2]
[352861368,1739379037054,-1000.0,0.000148,2]
[352861369,1739379037077,-4371.21740179,0.000148,5]
[352861438,1739379038863,-9598.71095581,0.00014122,2]
[352861440,1739379038873,-9598.71095581,0.00014567,2]
[352861442,1739379038883,-397.87357008,0.00014698,2]
[352861444,1739379038892,-371.99515168,0.00014798,3]
[352861446,1739379038904,-500.0,0.00014798,3]
[352861458,1739379039011,-6817.20419796,0.00014798,3]
[352861460,1739379039028,-1481.02020155,0.00014798,3]
[352861463,1739379039039,-1850.9311271,0.00014798,3]
[352861465,1739379039053,-1155.0,0.00014798,3]
[352861468,1739379039068,-9315.63957483,0.00014798,3]
[352861470,1739379039079,-607.97363732,0.00014798,3]
[352861474,1739379039115,-1416.19397936,0.00014798,3]
[352861572,1739379040054,-1029.94312625,0.00014798,3]
[352861574,1739379040066,-390.10083408,0.00014798,3]
[352861576,1739379040077,-510.02107062,0.00014798,3]
[352861588,1739379040184,-1754.8557159,0.00014798,3]
[352861589,1739379040242,-6524.94282815,0.00014798,3]
[352861590,1739379040256,-661.41325391,0.00014798,3]
[352861604,1739379040424,-162334.80002973,0.00014798,3]
[352861610,1739379040477,-7639.19148093,0.00014798,3]
[352861706,1739379043057,-585.97787072,0.00014798,3]
[352861751,1739379132758,423.7276,8.699e-05,2]
[352861752,1739379264906,4555.7308,8.836e-05,2]
[352861795,1739380200123,362.0454,8.119e-05,2]
[352861796,1739380212594,397.5599,8.836e-05,2]
[352861821,1739380232185,-500.0,8.851e-05,2]
[352861823,1739380232195,-849.8483,8.851e-05,2]
[352861825,1739380232205,-119.85034955,8.973e-05,2]
[352861826,1739380232217,-210.75635045,8.973e-05,2]
[352861828,1739380232231,-151.71,0.00010137,2]
[352861830,1739380232241,-672.367,0.00010742,2]
[352861832,1739380232251,-150.0,0.00010742,2]
[352861833,1739380232261,-181.14023265,0.0001133,2]
[352861835,1739380232270,-783.0,0.0001143,2]
[352861836,1739380232280,-2085.12,0.0001143,2]
[352861837,1739380232290,-9015.34562688,0.000116,2]
[352861838,1739380232302,-538.65437312,0.000116,2]
[352861839,1739380232312,-5554.0,0.000121,3]
[352861840,1739380232322,-5554.0,0.000125,5]
[352861841,1739380232332,-682.95764081,0.0001252,2]
[352861842,1739380232342,-682.95764081,0.0001253,2]
[352861843,1739380232351,-682.95764081,0.00012572,2]
[352861844,1739380232361,-682.95764081,0.0001259,2]
[352861845,1739380232371,-550.0,0.00013,2]
[352861846,1739380232380,-304.8,0.000131,2]
[352861847,1739380232396,-165.28,0.00013534,2]
[352861848,1739380232407,-378.05,0.00013559,2]
[352861849,1739380232421,-596.24,0.00013644,2]
[352861850,1739380232431,-582.72,0.00013662,2]
[352861851,1739380232441,-167.71,0.00013699,2]
[352861852,1739380232451,-1000.0,0.00013759,2]
[352861853,1739380232461,-172.548647,0.00013939,3]
[352861854,1739380232470,-150.0,0.00014143,2]
[352861855,1739380232480,-150.0,0.00014143,2]
[352861856,1739380232491,-150.0,0.00014143,2]
[352861857,1739380232501,-150.0,0.00014143,2]
[352861858,1739380232511,-783.0,0.0001443,2]
[352861859,1739380232520,-2800.0,0.000145,5]
[352861860,1739380232530,-205.0446213,0.00014503,2]
[352861861,1739380232539,-150.0,0.00014503,2]
[352861862,1739380232549,-150.0,0.00014504,2]
[352861863,1739380232558,-150.0,0.00014513,2]
[352861864,1739380232568,-150.0,0.00014513,2]
[352861865,1739380232578,-150.0,0.00014516,2]
[352861866,1739380232587,-1000.0,0.00014518,2]
[352861867,1739380232597,-150.0,0.00014518,2]
[352861868,1739380232606,-1000.0,0.0001452,3]
[352861869,1739380232617,-150.0,0.00014525,2]
[352861873,1739380232806,-1000.0,0.00014528,2]
[352861875,1739380232817,-1000.0,0.00014529,2]
[352861876,1739380232828,-150.0,0.00014529,2]
[352861878,1739380232837,-1000.0,0.0001454,2]
[352861879,1739380232847,-150.0,0.00014541,2]